bitfinex/quotes_SOLUSD_20251006
["timestamp","ask_amount","ask_price","bid_price","bid_amount"]
[1759744816670,4.27917326,233.69,233.58,20.8]
[1759744816876,4.27917326,233.69,233.62,20.8]
[1759744817064,4.27917326,233.69,233.63,30.0]
[1759744817267,4.27917326,233.69,233.64,0.7]
[1759744817467,0.1,233.7,233.65,0.7]
[1759744817955,4.37901799,233.7,233.65,0.7]
[1759744818377,4.37901799,233.7,233.66,0.7]
[1759744818573,4.37901799,233.7,233.67,0.7]
[1759744818782,4.37901799,233.7,233.68,0.7]
[1759744818978,4.37901799,233.7,233.66,0.7]
[1759744819182,4.37901799,233.7,233.67,0.7]
[1759744819485,4.37901799,233.7,233.68,0.7]
[1759744819665,4.37901799,233.7,233.63,34.28025032]
[1759744819876,4.37901799,233.7,233.64,0.7]
[1759744820786,0.1,233.7,233.64,4.97991463]
[1759744820984,0.1,233.7,233.65,0.7]
[1759744821479,0.1,233.7,233.66,30.0]
[1759744821686,0.1,233.7,233.67,0.7]
[1759744821883,0.1,233.7,233.68,0.7]
[1759744822669,4.37900377,233.7,233.69,30.0]
[1759744824181,4.37900377,233.7,233.69,30.7]
[1759744825272,0.1,233.7,233.69,30.7]
[1759744825671,0.1,233.7,233.69,34.97917326]
[1759744825890,0.1,233.7,233.69,30.7]
[1759744826390,0.1,233.7,233.69,34.97917326]
[1759744827095,0.1,233.7,233.69,47.75277429]
[1759744828699,0.1,233.7,233.69,13.47360103]
[1759744828879,0.1,233.7,233.69,30.74]
[1759744829187,0.1,233.7,233.69,35.01828486]
[1759744831481,0.1,233.7,233.69,39.29745812]
[1759744832796,0.1,233.7,233.69,35.01828486]
[1759744834311,0.1,233.7,233.69,39.29745812]
[1759744835803,0.1,233.7,233.69,9.25745812]
[1759744836102,0.1,233.7,233.69,39.27745812]
[1759744836994,0.1,233.7,233.69,30.72]
[1759744837806,0.1,233.7,233.69,20.8]
[1759744837986,5.06899015,233.7,233.64,0.72]
[1759744838189,1.32876223,233.69,233.65,4.27846119]
[1759744838392,0.69,233.68,233.66,30.02]
[1759744838682,4.27953952,233.67,233.66,30.02]
[1759744839708,4.96953952,233.67,233.66,30.02]
[1759744840195,4.27953952,233.67,233.66,30.02]
[1759744841024,4.27935638,233.68,233.66,30.02]
[1759744841196,4.96935638,233.68,233.66,30.02]
[1759744842225,4.96935638,233.68,233.63,20.8]
[1759744842412,4.96935638,233.68,233.64,30.0]
[1759744842712,4.96935638,233.68,233.65,30.0]
[1759744842918,4.27920784,233.69,233.63,20.8]
[1759744843092,5.06912457,233.7,233.64,30.72]
[1759744843290,0.69,233.69,233.65,30.0]
[1759744844108,0.69,233.68,233.66,30.0]
[1759744844513,17.09536219,233.7,233.66,30.0]
[1759744844700,0.69,233.69,233.66,30.0]
[1759744845013,4.27935638,233.68,233.66,30.0]
[1759744846408,4.27919285,233.69,233.67,0.72]
[1759744846616,0.1,233.7,233.68,0.72]
[1759744846912,0.1,233.7,233.69,30.0]
[1759744847133,0.1,233.7,233.69,30.72]
[1759744847310,4.37899015,233.7,233.69,30.0]
[1759744848131,4.37899015,233.7,233.66,0.69]
[1759744848445,4.37899015,233.7,233.69,30.0]
[1759744849523,4.37899015,233.7,233.66,0.69]
[1759744849721,4.37899015,233.7,233.69,30.0]
[1759744850124,5.06899015,233.7,233.69,30.0]
[1759744850612,5.06899015,233.7,233.68,30.0]
[1759744851315,5.70775238,233.7,233.64,0.69]
[1759744851626,5.70775238,233.7,233.65,29.98]
[1759744851627,17.09522777,233.7,233.65,29.98]
[1759744851825,0.69,233.69,233.65,29.98]
[1759744852009,0.69,233.69,233.65,30.67]
[1759744852528,15.07646554,233.7,233.65,30.67]
[1759744852838,15.07646554,233.7,233.63,20.8]
[1759744852839,15.76646554,233.7,233.66,29.98]
[1759744853003,15.76646554,233.7,233.66,30.67]
[1759744853203,15.07646554,233.7,233.66,29.98]
[1759744853432,15.07646554,233.7,233.67,0.69]
[1759744853625,4.37899015,233.7,233.68,0.69]
[1759744853930,4.37899015,233.7,233.66,30.67]
[1759744854115,4.37899015,233.7,233.67,0.69]
[1759744855032,2.01876223,233.69,233.64,20.8]
[1759744855221,0.69,233.68,233.65,29.98]
[1759744855728,1.32876223,233.69,233.65,29.98]
[1759744856032,2.01876223,233.69,233.65,29.98]
[1759744856214,2.01876223,233.69,233.65,30.67]
[1759744856631,2.01876223,233.69,233.65,29.98]
[1759744857146,4.27935638,233.68,233.65,29.98]
[1759744857823,14.97774734,233.68,233.65,29.98]
[1759744858430,4.27935638,233.68,233.66,0.69]
[1759744858620,4.27935638,233.68,233.65,29.98]
[1759744858821,4.27935638,233.68,233.66,0.69]
[1759744859139,4.27917326,233.69,233.66,0.69]
[1759744859432,4.27917326,233.69,233.67,0.69]
[1759744860742,0.1,233.7,233.68,51.45]
[1759744860934,0.1,233.7,233.69,29.96]
[1759744861237,0.1,233.7,233.69,30.65]
[1759744863233,0.1,233.7,233.69,30.67]
[1759744864816,0.1,233.7,233.67,3.59344004]
[1759744864817,2.11876223,233.7,233.67,3.59344004]
[1759744865137,1.32876223,233.68,233.61,3.59344004]
[1759744865324,1.32876223,233.65,233.61,3.59344004]
[1759744865635,0.69,233.67,233.62,30.02]
[1759744865843,2.01876223,233.67,233.62,30.02]
[1759744866019,2.01876223,233.67,233.62,30.71]
[1759744866220,4.27990584,233.65,233.62,30.02]
[1759744866954,4.27990584,233.65,233.62,30.71]
[1759744868044,4.27990584,233.65,233.62,30.02]
[1759744868256,5.60866807,233.65,233.62,30.02]
[1759744868747,4.27990584,233.65,233.62,30.02]
[1759744868923,4.27990584,233.65,233.62,30.71]
[1759744869745,4.27990584,233.65,233.63,0.69]
[1759744871222,0.1,233.7,233.64,0.69]
[1759744871442,0.1,233.7,233.65,30.0]
[1759744871640,0.1,233.7,233.66,0.69]
[1759744871949,4.27919887,233.69,233.65,30.0]
[1759744872130,4.27919887,233.69,233.65,30.69]
[1759744872532,4.27919887,233.69,233.66,0.69]
[1759744872934,4.27919887,233.69,233.63,3.59344004]
[1759744873149,4.27919887,233.69,233.64,30.69]
[1759744873442,5.6079611,233.69,233.65,0.69]
[1759744874350,4.27919887,233.69,233.65,0.69]
[1759744874521,5.6079611,233.69,233.65,0.69]
[1759744875328,5.6079611,233.69,233.66,29.98]
[1759744875528,5.6079611,233.69,233.66,30.67]
[1759744876049,4.27919887,233.69,233.66,30.67]
[1759744876254,4.27919887,233.69,233.64,3.59344004]
[1759744876461,1.32876223,233.65,233.63,20.8]
[1759744876626,1.32876223,233.64,233.62,29.98]
[1759744876946,2.01876223,233.65,233.62,29.98]
[1759744877335,0.69,233.68,233.62,29.98]
[1759744877538,0.69,233.68,233.6,25.08344004]
[1759744877539,1.32876223,233.64,233.6,3.59344004]
[1759744877747,1.32876223,233.61,233.59,3.59344004]
[1759744878066,1.32876223,233.61,233.57,30.0]
[1759744878234,4.28082191,233.6,233.57,30.67]
[1759744878746,4.28059814,233.62,233.58,0.67]
[1759744878939,4.28059814,233.62,233.59,0.67]
[1759744879650,4.28059814,233.62,233.57,30.67]
[1759744879849,4.28059814,233.62,233.58,0.67]
[1759744880653,1.32876223,233.6,233.55,3.59344004]
[1759744880874,1.32876223,233.6,233.56,30.0]
[1759744880875,1.32876223,233.59,233.56,30.0]
[1759744881633,2.04876223,233.6,233.56,30.0]
[1759744881850,4.28100518,233.59,233.56,30.67]
[1759744883573,4.28100518,233.59,233.56,30.0]
[1759744884165,4.28100518,233.59,233.56,30.67]
[1759744886271,14.9831181,233.6,233.56,30.67]
[1759744886942,14.9831181,233.6,233.57,0.67]
[1759744887151,4.28082191,233.6,233.56,30.0]
[1759744887351,4.28065897,233.61,233.57,0.67]
[1759744887742,4.28065897,233.61,233.58,0.67]
[1759744887964,4.28065897,233.61,233.59,0.67]
[1759744888165,4.28045544,233.62,233.59,0.67]
[1759744890175,14.98159404,233.62,233.57,0.67]
[1759744890378,17.03035627,233.62,233.57,0.67]
[1759744891071,17.78033596,233.62,233.57,0.67]
[1759744891463,17.78033596,233.62,233.56,30.0]
[1759744891657,17.78033596,233.62,233.57,0.67]
[1759744891868,17.78033596,233.62,233.56,30.0]
[1759744891869,4.28045544,233.62,233.58,0.67]
[1759744892172,6.35919736,233.62,233.58,0.67]
[1759744892381,17.78033596,233.62,233.58,0.67]
[1759744892680,17.78033596,233.62,233.56,30.0]
[1759744892874,17.78033596,233.62,233.56,21.47]
[1759744893063,2.07874192,233.61,233.57,29.98]
[1759744893370,2.79874192,233.6,233.56,29.98]
[1759744893675,0.72,233.59,233.56,29.98]
[1759744894373,4.28118845,233.58,233.56,29.98]
[1759744896153,4.28118845,233.58,233.55,29.98]
[1759744896469,14.98415959,233.58,233.55,29.98]
[1759744898179,14.98415959,233.58,233.56,0.65]
[1759744898351,10.70297114,233.58,233.56,0.65]
[1759744898547,4.28100518,233.59,233.55,29.98]
[1759744898772,4.28100518,233.59,233.56,0.65]
[1759744898963,79.1,233.67,233.58,20.8]
[1759744899168,4.27953952,233.67,233.59,30.61]
[1759744899379,4.27953952,233.67,233.6,0.65]
[1759744900078,4.2792897,233.69,233.62,20.8]
[1759744900281,4.2792897,233.69,233.63,30.65]
[1759744900478,4.2792897,233.69,233.64,0.65]
[1759744901258,4.2792897,233.69,233.65,0.65]
[1759744903073,0.66,233.68,233.63,30.0]
[1759744903299,0.66,233.68,233.63,30.65]
[1759744903488,0.66,233.68,233.64,0.65]
[1759744903665,17.05596477,233.69,233.64,0.65]
[1759744903995,0.66,233.68,233.63,30.0]
[1759744904284,4.27953952,233.67,233.63,30.0]
[1759744904486,4.27953952,233.67,233.63,0.65]
[1759744904696,4.27953952,233.67,233.64,29.98]
[1759744907489,14.97838832,233.67,233.61,21.45]
[1759744907684,17.05713024,233.67,233.63,29.96]
[1759744907991,2.74874192,233.66,233.63,29.96]
[1759744908187,2.07874192,233.64,233.6,29.96]
[1759744908364,2.74874192,233.64,233.6,29.96]
[1759744908566,4.28027222,233.63,233.6,29.96]
[1759744908883,4.28027222,233.63,233.59,0.72]
[1759744909067,4.28027222,233.63,233.6,29.96]
[1759744909974,2.07874192,233.62,233.57,25.11344004]
[1759744910175,2.07874192,233.61,233.58,29.96]
[1759744910871,2.07874192,233.61,233.58,30.68]
[1759744911982,4.28082191,233.6,233.58,30.68]
[1759744913088,4.28082191,233.6,233.58,0.72]
[1759744913989,10.70172572,233.61,233.57,29.96]
[1759744913990,4.28063867,233.61,233.59,0.72]
[1759744914192,4.28063867,233.61,233.6,0.72]
[1759744916095,14.98064492,233.64,233.6,0.72]
[1759744916282,17.05938684,233.64,233.6,0.72]
[1759744916793,14.98064492,233.64,233.6,0.72]
[1759744916996,17.05938684,233.64,233.6,0.72]
[1759744917600,2.74874192,233.63,233.57,30.68]
[1759744917785,2.74874192,233.63,233.57,0.72]
[1759744918096,2.74874192,233.63,233.58,29.94]
[1759744918399,2.07874192,233.63,233.59,0.72]
[1759744919093,2.07874192,233.63,233.58,29.94]
[1759744919393,2.74874192,233.63,233.58,30.66]
[1759744919688,4.28045544,233.62,233.58,0.72]
[1759744919896,14.98159404,233.62,233.58,30.66]
[1759744920283,14.98159404,233.62,233.59,0.72]
[1759744920491,4.28045544,233.62,233.6,0.72]
[1759744920996,4.28045544,233.62,233.58,30.66]
[1759744921205,14.98159404,233.62,233.59,0.72]
[1759744921881,10.7011386,233.62,233.59,0.72]
[1759744922469,10.7011386,233.62,233.6,0.72]
[1759744923693,10.7011386,233.62,233.58,29.94]
[1759744923869,10.7011386,233.62,233.58,30.66]
[1759744924072,14.98159404,233.62,233.58,0.72]
[1759744924297,14.98159404,233.62,233.59,29.94]
[1759744924482,14.98159404,233.62,233.59,30.66]
[1759744925084,14.98159404,233.62,233.59,0.72]
[1759744925288,14.98159404,233.62,233.59,30.66]
[1759744925602,0.67,233.61,233.56,25.11344004]
[1759744925900,2.74874192,233.6,233.57,29.94]
[1759744926082,4.28100518,233.59,233.57,29.94]
[1759744926594,17.73226005,233.59,233.55,3.59344004]
[1759744926779,17.73226005,233.59,233.56,29.94]
[1759744928797,2.74874192,233.58,233.53,24.39344004]
[1759744929087,2.07874192,233.58,233.54,30.66]
[1759744929296,2.07874192,233.58,233.55,0.72]
[1759744929683,17.06226005,233.59,233.55,0.72]
[1759744929884,14.98351813,233.59,233.55,0.72]
[1759744930099,14.98351813,233.59,233.56,0.72]
[1759744930285,14.98351813,233.59,233.57,0.72]
[1759744930487,14.98351813,233.59,233.55,0.72]
[1759744930814,14.98351813,233.59,233.55,30.66]
[1759744931102,14.98351813,233.59,233.56,0.72]
[1759744931904,2.74874192,233.67,233.58,20.8]
[1759744932112,10.69992902,233.65,233.59,30.66]
[1759744932287,10.69992902,233.65,233.6,0.72]
[1759744932605,10.69992902,233.65,233.61,0.72]
[1759744933486,10.87647521,233.68,233.62,0.72]
[1759744933689,14.97710641,233.69,233.63,29.94]
[1759744933984,4.27917326,233.69,233.64,0.72]
[1759744934293,0.1,233.7,233.64,0.72]
[1759744934598,2.07874192,233.69,233.64,0.72]
[1759744934788,2.07874192,233.67,233.64,29.96]
[1759744934994,2.07874192,233.65,233.63,29.98]
[1759744935504,2.07874192,233.66,233.63,29.98]
[1759744935709,4.27990584,233.65,233.63,29.98]
[1759744936006,4.27964562,233.67,233.63,29.98]
[1759744936189,4.27935569,233.69,233.64,0.72]
[1759744936593,7.02809761,233.69,233.64,0.72]
[1759744937103,6.35809761,233.69,233.65,0.72]
[1759744937311,4.27935569,233.69,233.65,0.72]
[1759744938120,4.27935569,233.69,233.66,0.66]
[1759744938693,4.27935569,233.69,233.63,34.26016991]
[1759744938694,4.27917326,233.69,233.63,34.26016991]
[1759744939000,4.27917326,233.69,233.67,0.66]
[1759744939194,0.1,233.7,233.67,0.66]
[1759744939398,0.1,233.7,233.68,0.66]
[1759744939790,4.37900996,233.7,233.67,29.98]
[1759744940192,4.37900996,233.7,233.67,30.64]
[1759744940393,4.37900996,233.7,233.67,0.66]
[1759744940592,4.37900996,233.7,233.67,30.64]
[1759744944421,2.07874192,233.69,233.67,29.98]
[1759744944597,4.27935638,233.68,233.67,29.98]
[1759744946709,4.27917326,233.69,233.67,29.98]
[1759744947214,4.27917326,233.69,233.67,30.64]
[1759744948700,4.27917326,233.69,233.68,0.66]
[1759744950401,0.1,233.7,233.68,0.66]
[1759744950704,0.1,233.7,233.69,0.66]
[1759744950911,4.37899015,233.7,233.69,0.66]
[1759744954234,4.37899015,233.7,233.67,30.64]
[1759744954530,4.37899015,233.7,233.68,0.67]
[1759744955634,0.1,233.7,233.68,0.67]
[1759744955932,0.1,233.7,233.69,0.67]
[1759744956227,0.1,233.7,233.69,21.47]
[1759744957727,0.1,233.7,233.69,25.74917326]
[1759744959310,0.1,233.7,233.69,25.06344004]
[1759744959808,0.1,233.7,233.69,50.74]
[1759744960408,0.1,233.7,233.69,51.41]
[1759744962737,4.37903415,233.7,233.69,29.94]
[1759744963308,4.37903415,233.7,233.67,0.67]
[1759744963309,0.1,233.7,233.67,0.67]
[1759744963518,0.1,233.7,233.68,30.61]
[1759744963935,0.1,233.7,233.69,0.67]
[1759744964841,0.1,233.7,233.68,29.94]
[1759744965022,0.1,233.7,233.69,0.67]
[1759744970736,0.1,233.7,233.69,0.71]
[1759744971822,0.1,233.7,233.68,29.94]
[1759744972030,4.37900468,233.7,233.68,29.94]
[1759744972738,4.37900468,233.7,233.69,29.92]
[1759744972947,16.40572095,233.7,233.63,3.59344004]
[1759744973124,1.32924088,233.67,233.63,29.92]
[1759744973318,0.1,233.7,233.63,29.92]
[1759744973561,0.1,233.7,233.66,20.8]
[1759744973719,0.1,233.7,233.69,24.39344004]
[1759744974057,0.1,233.7,233.69,55.03917326]
[1759744974218,0.1,233.7,233.69,68.59053958]
[1759744974922,0.1,233.7,233.69,73.39389121]
[1759744976246,0.1,233.7,233.69,68.59053958]
[1759744977728,0.1,233.7,233.69,81.21626133]
[1759744979334,0.1,233.7,233.69,51.25626133]
[1759744979647,0.1,233.7,233.69,81.21626133]
[1759744979824,0.1,233.7,233.69,51.25626133]
[1759744980022,0.1,233.7,233.69,81.21626133]
[1759744981330,0.1,233.7,233.69,33.64136632]
[1759744981637,0.1,233.7,233.69,55.52881272]
[1759744982022,0.1,233.7,233.69,50.76]
[1759744983247,5.08899015,233.7,233.68,4.76881272]
[1759744983447,5.08899015,233.7,233.64,3.58075119]
[1759744983448,2.03924088,233.69,233.64,3.58075119]
[1759744983754,0.71,233.68,233.63,3.58075119]
[1759744983938,0.71,233.67,233.64,30.04]
[1759744984263,15.78646554,233.7,233.64,30.04]
[1759744984561,0.71,233.69,233.64,30.04]
[1759744984847,0.71,233.68,233.64,30.04]
[1759744985351,4.27953952,233.67,233.64,30.04]
[1759744985553,4.27953952,233.67,233.64,33.62075119]
[1759744987847,0.71,233.66,233.65,30.02]
[1759744988155,0.71,233.66,233.63,3.58075119]
[1759744988375,0.71,233.65,233.62,33.60075119]
[1759744988661,15.68838832,233.67,233.62,33.60075119]
[1759744988836,0.71,233.66,233.62,33.60075119]
[1759744989150,4.27953952,233.67,233.63,4.29075119]
[1759744989344,4.27953952,233.67,233.64,30.02]
[1759744989542,4.98953952,233.67,233.64,30.02]
[1759744989964,1.32924088,233.65,233.62,3.58075119]
[1759744990272,0.71,233.66,233.57,0.71]
[1759744990273,1.32924088,233.64,233.61,3.58075119]
[1759744990443,1.32924088,233.62,233.57,30.06]
[1759744990644,0.71,233.63,233.58,4.29075119]
[1759744990844,4.28045544,233.62,233.58,0.71]
[1759744991045,4.28045544,233.62,233.58,4.29075119]
[1759744991459,4.28045544,233.62,233.57,33.64075119]
[1759744991753,4.28045544,233.62,233.59,0.71]
[1759744992045,4.28045544,233.62,233.6,30.06]
[1759744992442,4.98999343,233.65,233.6,30.06]
[1759744992641,0.71,233.64,233.6,30.06]
[1759744993263,4.27999343,233.65,233.6,30.06]
[1759744993440,4.98999343,233.65,233.6,30.06]
[1759744993646,4.28027222,233.63,233.6,30.06]
[1759744993850,4.99027222,233.63,233.6,30.06]
[1759744994374,0.71,233.62,233.6,30.06]
[1759744994668,16.31019366,233.63,233.6,30.06]
[1759744995046,0.71,233.62,233.6,30.06]
[1759744995747,4.28063867,233.61,233.6,30.06]
[1759744997262,15.69223534,233.61,233.55,4.29075119]
[1759744997577,17.02147622,233.61,233.56,30.04]
[1759744997761,2.01924088,233.6,233.56,30.04]
[1759744998284,0.69,233.6,233.56,30.04]
[1759744999078,14.98223534,233.61,233.56,30.04]
[1759744999256,14.98223534,233.61,233.57,0.69]
[1759744999758,0.69,233.6,233.56,30.04]
[1759744999954,14.98223534,233.61,233.56,30.73]
[1759745000153,14.98223534,233.61,233.57,0.69]
[1759745000551,15.67223534,233.61,233.56,30.04]
[1759745000969,0.69,233.6,233.56,30.04]
[1759745002284,4.28100518,233.59,233.56,30.04]
[1759745002776,15.67351813,233.59,233.56,30.04]
[1759745003297,14.98351813,233.59,233.56,30.04]
[1759745003888,0.69,233.64,233.57,0.69]
[1759745004191,4.28027222,233.63,233.57,0.69]
[1759745004359,4.97027222,233.63,233.57,0.69]
[1759745004660,17.00019366,233.63,233.56,30.04]
[1759745004863,1.32924088,233.62,233.56,30.04]
[1759745005081,1.32924088,233.62,233.56,30.73]
[1759745006367,14.98223534,233.61,233.56,30.73]
[1759745006567,15.67223534,233.61,233.56,30.73]
[1759745006882,0.69,233.6,233.56,30.04]
[1759745007063,0.69,233.59,233.56,30.04]
[1759745007981,4.28118845,233.58,233.56,30.04]
[1759745008171,4.28118845,233.58,233.56,30.73]
[1759745008885,4.28118845,233.58,233.56,30.04]
[1759745010072,16.3128922,233.59,233.55,30.0]
[1759745010699,1.32924088,233.56,233.51,0.69]
[1759745010995,1.32924088,233.56,233.52,30.69]
[1759745011180,1.32924088,233.56,233.52,30.71]
[1759745011381,14.98365132,233.59,233.52,30.02]
[1759745011382,1.32924088,233.54,233.52,30.02]
[1759745011967,2.01924088,233.54,233.52,30.02]
[1759745012161,14.98736778,233.53,233.49,30.71]
[1759745012772,14.98736778,233.53,233.5,0.69]
[1759745013164,14.98736778,233.53,233.49,30.02]
[1759745013366,14.98736778,233.53,233.5,0.69]
[1759745013583,14.98736778,233.53,233.49,30.02]
[1759745013790,14.98736778,233.53,233.49,30.71]
[1759745015185,10.7052627,233.53,233.49,30.71]
[1759745016085,10.7052627,233.53,233.5,0.71]
[1759745016295,6.36229391,233.54,233.5,0.71]
[1759745016296,4.28192172,233.54,233.5,0.71]
[1759745017493,14.98672603,233.54,233.5,0.71]
[1759745017969,14.98672603,233.54,233.51,0.71]
[1759745018789,2.75037219,233.53,233.49,30.73]
[1759745019003,2.75037219,233.52,233.49,30.02]
[1759745019495,0.67,233.52,233.49,30.02]
[1759745019867,0.67,233.52,233.47,0.71]
[1759745020067,2.08037219,233.5,233.45,0.2]
[1759745020282,2.75037219,233.5,233.46,30.0]
[1759745020869,14.98993532,233.49,233.46,30.0]
[1759745021078,14.98993532,233.49,233.46,30.71]
[1759745022490,4.28283866,233.49,233.46,30.71]
[1759745022684,4.28260514,233.51,233.47,0.71]
[1759745022990,14.98809516,233.52,233.48,0.71]
[1759745023287,2.75037219,233.51,233.46,30.71]
[1759745024985,4.28265524,233.5,233.46,30.71]
[1759745025191,4.28265524,233.5,233.47,0.71]
[1759745025388,4.28265524,233.5,233.48,0.71]
[1759745025582,4.28265524,233.5,233.46,30.0]
[1759745025787,4.28265524,233.5,233.47,0.71]
[1759745025983,4.28265524,233.5,233.48,0.71]
[1759745026204,12.78480498,233.55,233.48,0.71]
[1759745026389,4.28192172,233.54,233.48,0.71]
[1759745027080,14.98672603,233.54,233.48,0.71]
[1759745029395,15.65672603,233.54,233.48,0.71]
[1759745030282,14.98672603,233.54,233.48,0.71]
[1759745030487,4.28192172,233.54,233.48,0.71]
[1759745031622,4.28173838,233.55,233.48,0.71]
[1759745031999,2.08037219,233.58,233.48,4.99289982]
[1759745032217,2.75037219,233.59,233.49,0.69]
[1759745033295,15.65351813,233.59,233.49,4.97275989]
[1759745033498,0.67,233.58,233.5,0.69]
[1759745035312,4.28137175,233.57,233.5,4.97260917]
[1759745035512,4.28137175,233.57,233.5,4.28260917]
[1759745035718,4.28137175,233.57,233.51,0.69]
[1759745037099,4.28137175,233.57,233.51,4.97243563]
[1759745037307,4.28137175,233.57,233.52,0.69]
[1759745037511,4.28118255,233.59,233.52,30.65]
[1759745037697,12.78178765,233.62,233.53,0.69]
[1759745037698,10.70141546,233.62,233.53,0.69]
[1759745038993,15.6518709,233.62,233.54,4.28192172]
[1759745039310,15.6518709,233.62,233.55,0.69]
[1759745040414,17.73224309,233.62,233.55,0.69]
[1759745041118,6.36192725,233.56,233.52,3.58075119]
[1759745041300,7.03192725,233.56,233.52,3.58075119]
[1759745041730,4.95155506,233.56,233.52,3.58075119]
[1759745041898,2.75037219,233.55,233.52,3.58075119]
[1759745042098,2.08037219,233.53,233.49,3.58075119]
[1759745042521,0.67,233.52,233.49,3.58075119]
[1759745042743,2.75037219,233.52,233.48,33.56075119]
[1759745042909,2.08037219,233.52,233.48,33.56075119]
[1759745043106,4.95247184,233.51,233.48,33.56075119]
[1759745043329,4.28247184,233.51,233.48,3.58075119]
[1759745043506,4.95247184,233.51,233.48,3.58075119]
[1759745044334,4.95247184,233.51,233.47,3.58075119]
[1759745044730,4.28247184,233.51,233.47,4.27075119]
[1759745045631,4.28247184,233.51,233.48,3.58075119]
[1759745046621,4.28247184,233.51,233.47,4.27075119]
[1759745047407,4.28247184,233.51,233.48,3.58075119]
[1759745048110,11.37543068,233.53,233.48,3.58075119]
[1759745048111,0.67,233.53,233.48,3.58075119]
[1759745048323,0.67,233.58,233.49,4.27075119]
[1759745048523,4.28137175,233.57,233.5,0.69]
[1759745048728,4.28137175,233.57,233.5,30.67]
[1759745049230,4.28137175,233.57,233.5,29.98]
[1759745049533,4.28137175,233.57,233.51,0.69]
[1759745049830,17.06517331,233.57,233.51,0.69]
[1759745050041,17.73517331,233.57,233.51,0.69]
[1759745051016,17.73517331,233.57,233.5,29.98]
[1759745051017,15.65480112,233.57,233.5,29.98]
[1759745051223,2.08037219,233.54,233.5,29.98]
[1759745051635,2.08037219,233.54,233.5,30.67]
[1759745051840,4.28192172,233.54,233.5,30.67]
[1759745053626,4.28192172,233.54,233.51,0.69]
[1759745054325,2.08037219,233.56,233.51,0.69]
[1759745054513,4.28173838,233.55,233.51,0.69]
[1759745054715,4.95173838,233.55,233.5,33.56075119]
[1759745054913,4.95173838,233.55,233.5,34.25075119]
[1759745055519,15.65608434,233.55,233.5,34.25075119]
[1759745055715,17.73645653,233.55,233.5,34.25075119]
[1759745056823,2.08037219,233.52,233.49,3.58075119]
[1759745057029,2.75037219,233.52,233.49,3.58075119]
[1759745057422,2.08037219,233.52,233.49,3.58075119]
[1759745058138,4.28247184,233.51,233.49,3.58075119]
[1759745059344,5.00247184,233.51,233.49,3.58075119]
[1759745060641,4.28247184,233.51,233.49,3.58075119]
[1759745064858,14.98800958,233.52,233.49,3.58075119]
[1759745065063,0.72,233.51,233.48,3.58075119]
[1759745066445,4.28265524,233.5,233.48,3.58075119]
[1759745067750,4.28265524,233.5,233.48,4.26075119]
[1759745068255,14.98865144,233.51,233.48,3.58075119]
[1759745068473,4.28247184,233.51,233.49,0.68]
[1759745068632,4.28247184,233.51,233.49,4.26075119]
[1759745068953,4.28247184,233.51,233.49,3.58075119]
[1759745069464,4.28247184,233.51,233.49,4.26075119]
[1759745069837,14.98809624,233.52,233.49,4.26075119]
[1759745070034,14.98809624,233.52,233.49,3.58075119]
[1759745070261,14.98809624,233.52,233.49,4.26075119]
[1759745070439,14.98809624,233.52,233.49,3.58075119]
[1759745070842,14.98809624,233.52,233.49,4.26075119]
[1759745071039,11.42580779,233.52,233.48,3.58075119]
[1759745071356,11.42580779,233.52,233.48,4.26075119]